Workbook

Sheet Ingreso
B2: CONTROL DE OPERACIÓN EN MANUFACTURA
B4: Fecha | C4: Cod | D4: Causa | E4: N° Ope. | F4: Min. Impro | G4: Hrs. Impro | I4: DATOS GENERALES EFICIENCIA OPERATIVA | AA4: =J8 -> Fecha | AB4: =J6 -> Líder de Proceso | AC4: =L6 -> Líneas Producción | AD4: =L8 -> Cantidad Operarios | AE4: =J10 -> Hora Turno | AF4: =L10 -> Horas Programadas | AG4: =J12 -> Horas Improductivos | AH4: =L12 -> Horas Reales | AI4: =K14 -> Eficiencia Operativa
B5: =IF(D5<>"",$K$8,0) -> 00:00:00 | C5: =IFERROR(INDEX(Maestro!$B$4:$C$31,MATCH(Ingreso!D5,Maestro!$C$4:$C$31,0),1),"") ->  | G5: =(E5*F5)/60 -> 0 | AA5: =K8 -> 00:00:00 | AB5: =K6 -> 0 | AC5: =M6 -> 0 | AD5: =M8 -> 0 | AE5: =K10 -> 0 | AF5: =M10 -> 0 | AG5: =K12 -> 0 | AH5: =M12 -> 0 | AI5: =L14 -> 0
B6: =IF(D6<>"",$K$8,0) -> 00:00:00 | C6: =IFERROR(INDEX(Maestro!$B$4:$C$31,MATCH(Ingreso!D6,Maestro!$C$4:$C$31,0),1),"") ->  | G6: 0 | J6: Líder de Proceso | L6: Líneas Producción
B7: 00:00:00 | C7: =IFERROR(INDEX(Maestro!$B$4:$C$31,MATCH(Ingreso!D7,Maestro!$C$4:$C$31,0),1),"") ->  | G7: 0
B8: 00:00:00 | C8: =IFERROR(INDEX(Maestro!$B$4:$C$31,MATCH(Ingreso!D8,Maestro!$C$4:$C$31,0),1),"") ->  | G8: 0 | J8: Fecha | L8: Cantidad Operarios
B9: 00:00:00 | C9: =IFERROR(INDEX(Maestro!$B$4:$C$31,MATCH(Ingreso!D9,Maestro!$C$4:$C$31,0),1),"") ->  | G9: 0
B10: 00:00:00 | C10: =IFERROR(INDEX(Maestro!$B$4:$C$31,MATCH(Ingreso!D10,Maestro!$C$4:$C$31,0),1),"") ->  | G10: 0 | J10: Hora Turno | L10: Horas Programadas | M10: =K10*M8 -> 0
B11: 00:00:00 | C11: =IFERROR(INDEX(Maestro!$B$4:$C$31,MATCH(Ingreso!D11,Maestro!$C$4:$C$31,0),1),"") ->  | G11: 0
B12: 00:00:00 | C12: =IFERROR(INDEX(Maestro!$B$4:$C$31,MATCH(Ingreso!D12,Maestro!$C$4:$C$31,0),1),"") ->  | G12: 0 | J12: Horas Improductivos | K12: =SUM(G5:G25) -> 0 | L12: Horas Reales | M12: =M10-K12 -> 0
B13: 00:00:00 | C13: =IFERROR(INDEX(Maestro!$B$4:$C$31,MATCH(Ingreso!D13,Maestro!$C$4:$C$31,0),1),"") ->  | G13: 0
B14: 00:00:00 | C14: =IFERROR(INDEX(Maestro!$B$4:$C$31,MATCH(Ingreso!D14,Maestro!$C$4:$C$31,0),1),"") ->  | G14: 0 | K14: Eficiencia Operativa | L14: =IFERROR(M12/M10,0) -> 0
B15: 00:00:00 | C15: =IFERROR(INDEX(Maestro!$B$4:$C$31,MATCH(Ingreso!D15,Maestro!$C$4:$C$31,0),1),"") ->  | G15: 0
B16: 00:00:00 | C16: =IFERROR(INDEX(Maestro!$B$4:$C$31,MATCH(Ingreso!D16,Maestro!$C$4:$C$31,0),1),"") ->  | G16: 0
B17: 00:00:00 | C17: =IFERROR(INDEX(Maestro!$B$4:$C$31,MATCH(Ingreso!D17,Maestro!$C$4:$C$31,0),1),"") ->  | G17: 0 | J17: =L14 -> 0
B18: 00:00:00 | C18: =IFERROR(INDEX(Maestro!$B$4:$C$31,MATCH(Ingreso!D18,Maestro!$C$4:$C$31,0),1),"") ->  | G18: 0 | J18: =1-J17 -> 1
B19: 00:00:00 | C19: =IFERROR(INDEX(Maestro!$B$4:$C$31,MATCH(Ingreso!D19,Maestro!$C$4:$C$31,0),1),"") ->  | G19: 0
B20: 00:00:00 | C20: =IFERROR(INDEX(Maestro!$B$4:$C$31,MATCH(Ingreso!D20,Maestro!$C$4:$C$31,0),1),"") ->  | G20: 0
B21: 00:00:00 | C21: =IFERROR(INDEX(Maestro!$B$4:$C$31,MATCH(Ingreso!D21,Maestro!$C$4:$C$31,0),1),"") ->  | G21: 0
B22: 00:00:00 | C22: =IFERROR(INDEX(Maestro!$B$4:$C$31,MATCH(Ingreso!D22,Maestro!$C$4:$C$31,0),1),"") ->  | G22: 0
B23: 00:00:00 | C23: =IFERROR(INDEX(Maestro!$B$4:$C$31,MATCH(Ingreso!D23,Maestro!$C$4:$C$31,0),1),"") ->  | G23: 0
B24: 00:00:00 | C24: =IFERROR(INDEX(Maestro!$B$4:$C$31,MATCH(Ingreso!D24,Maestro!$C$4:$C$31,0),1),"") ->  | G24: 0
B25: 00:00:00 | C25: =IFERROR(INDEX(Maestro!$B$4:$C$31,MATCH(Ingreso!D25,Maestro!$C$4:$C$31,0),1),"") ->  | G25: 0

Sheet BdD Efi
B2: Fecha | C2: Lider de Proceso | D2: Lineas Producción | E2: Cantidad Operarios | F2: Hora Turno | G2: Horas Programadas | H2: Horas Improduc. | I2: Horas Reales | J2: Eficiencia Operativa | L2: ID
B3: 2021-07-29 | C3: KAREN GARCIA | D3: CORTE | E3: 8 | F3: 8 | G3: 64 | H3: 3.333333333 | I3: 60.66666667 | J3: 0.9479166667 | L3: =CONCATENATE(MONTH(B3),D3) -> 7CORTE
B4: 2021-07-29 | C4: KAREN GARCIA | D4: CORTE | E4: 8 | F4: 8 | G4: 64 | H4: 3.333333333 | I4: 60.66666667 | J4: 0.9479166667 | L4: =CONCATENATE(MONTH(B4),D4) -> 7CORTE
B5: 2021-07-29 | C5: SANTIAGO MARIN | D5: SOLDADURA | E5: 8 | F5: 10 | G5: 80 | H5: 7.45 | I5: 72.55 | J5: 0.906875 | L5: 7SOLDADURA
B6: 2021-05-05 | C6: CARLOS RUIZ | D6: SOLDADURA | E6: 12 | F6: 8 | G6: 96 | H6: 4.833333333 | I6: 91.16666667 | J6: 0.9496527778 | L6: 5SOLDADURA
B7: 2021-06-06 | C7: KAREN GARCIA | D7: PINTURA | E7: 5 | F7: 8 | G7: 40 | H7: 17.75 | I7: 22.25 | J7: 0.55625 | L7: 6PINTURA
B8: 2021-01-12 | C8: KAREN GARCIA | D8: PINTURA | E8: 5 | F8: 10 | G8: 50 | H8: 6.666666667 | I8: 43.33333333 | J8: 0.8666666667 | L8: 1PINTURA
B9: 2021-02-02 | C9: SANTIAGO MARIN | D9: PINTURA | E9: 8 | F9: 10 | G9: 80 | H9: 7.45 | I9: 72.55 | J9: 0.906875 | L9: 2PINTURA
B10: 2021-02-02 | C10: CARLOS RUIZ | D10: MECANIZADO | E10: 12 | F10: 8 | G10: 96 | H10: 4.833333333 | I10: 91.16666667 | J10: 0.9496527778 | L10: 2MECANIZADO
B11: 2021-03-03 | C11: KAREN GARCIA | D11: MECANIZADO | E11: 5 | F11: 8 | G11: 40 | H11: 17.75 | I11: 22.25 | J11: 0.55625 | L11: 3MECANIZADO
B12: 2021-04-04 | C12: CARLOS RUIZ | D12: SOLDADURA | E12: 12 | F12: 8 | G12: 96 | H12: 4.833333333 | I12: 91.16666667 | J12: 0.9496527778 | L12: 4SOLDADURA
B13: 2021-04-04 | C13: KAREN GARCIA | D13: EMPAQUE | E13: 5 | F13: 8 | G13: 40 | H13: 17.75 | I13: 22.25 | J13: 0.55625 | L13: 4EMPAQUE
B14: 2021-04-04 | C14: KAREN GARCIA | D14: EMPAQUE | E14: 5 | F14: 10 | G14: 50 | H14: 6.666666667 | I14: 43.33333333 | J14: 0.8666666667 | L14: 4EMPAQUE
L15: 1
L16: 1
L17: 1
L18: 1
L19: 1
L20: 1
L21: 1
L22: 1
L23: 1
L24: 1
L25: 1
L26: 1
L27: 1
L28: 1
L29: 1
L30: 1
L31: 1
L32: 1
L33: 1
L34: 1
L35: 1
L36: 1
L37: 1
L38: 1
L39: 1
L40: 1
L41: 1
L42: 1
L43: 1
L44: 1
L45: 1
L46: 1
L47: 1
L48: 1
L49: 1
L50: 1
L51: 1
L52: 1
L53: 1
L54: 1
L55: 1
L56: 1
L57: 1
L58: 1
L59: 1
L60: 1
L61: 1
L62: 1
L63: 1
L64: 1
L65: 1
L66: 1
L67: 1
L68: =CONCATENATE(MONTH(B68),D68) -> 1
L69: 1
L70: 1
L71: 1
L72: 1
L73: 1
L74: 1
L75: 1
L76: 1
L77: 1
L78: 1
L79: 1
L80: 1
L81: 1
L82: 1
L83: 1
L84: 1
L85: 1
L86: 1
L87: 1
L88: 1
L89: 1
L90: 1
L91: 1
L92: 1
L93: 1
L94: 1
L95: 1
L96: 1
L97: 1
L98: 1
L99: 1
L100: 1
L101: 1
L102: 1
L103: 1
L104: 1
L105: 1
L106: 1
L107: 1
L108: 1
L109: 1
L110: 1
L111: 1
L112: 1
L113: 1
L114: 1
L115: 1
L116: 1
L117: 1
L118: 1
L119: 1
L120: 1
L121: 1
L122: 1
L123: 1
L124: 1
L125: 1
L126: 1
L127: 1
L128: 1
L129: 1
L130: 1
L131: 1
L132: =CONCATENATE(MONTH(B132),D132) -> 1
L133: 1
L134: 1
L135: 1
L136: 1
L137: 1
L138: 1
L139: 1
L140: 1
L141: 1
L142: 1
L143: 1
L144: 1
L145: 1
L146: 1
L147: 1
L148: 1
L149: 1
L150: 1
L151: 1
L152: 1
L153: 1
L154: 1
L155: 1
L156: 1
L157: 1
L158: 1
L159: 1
L160: 1
L161: 1
L162: 1
L163: 1
L164: 1
L165: 1
L166: 1
L167: 1
L168: 1
L169: 1
L170: 1
L171: 1
L172: 1
L173: 1
L174: 1
L175: 1
L176: 1
L177: 1
L178: 1
L179: 1
L180: 1
L181: 1
L182: 1
L183: 1
L184: 1
L185: 1
L186: 1
L187: 1
L188: 1
L189: 1
L190: 1
L191: 1
L192: 1
L193: 1
L194: 1
L195: 1
L196: =CONCATENATE(MONTH(B196),D196) -> 1
L197: 1
L198: 1
L199: 1
L200: 1
L201: 1
... 799 more rows

Sheet BdD Imp
B2: Fecha | C2: Cod | D2: Causa | E2: N° Ope. | F2: Min. Impro | G2: Hrs. Impro | I2: ID
B3: 2021-07-29 | C3: C12 | D3: PERMISOS | E3: 10 | F3: 15 | G3: 2.5 | I3: =CONCATENATE(MONTH(B3),C3) -> 7C12
B4: 2021-07-29 | C4: C16 | D4: ASEO | E4: 10 | F4: 20 | G4: 3.333333333 | I4: =CONCATENATE(MONTH(B4),C4) -> 7C16
B5: 2021-07-29 | C5: C21 | D5: PRUEBAS O ENSAYOS | E5: 5 | F5: 15 | G5: 1.25 | I5: 7C21
B6: 2021-07-29 | C6: C26 | D6: ACCIDENTE DE TRABAJO | E6: 1 | F6: 45 | G6: 0.75 | I6: 7C26
B7: 2021-07-29 | C7: C28 | D7: ASEO | E7: 1 | F7: 12 | G7: 0.2 | I7: 7C28
B8: 2021-07-29 | C8: C29 | D8: REUNIÓN O CAPACITACIÓN | E8: 5 | F8: 15 | G8: 1.25 | I8: 7C29
B9: 2021-07-29 | C9: C30 | D9: SOLICITUD DE MATERIALES NO PARAMETRIZADOS | E9: 8 | F9: 45 | G9: 6 | I9: 7C30
B10: 2021-05-05 | C10: C28 | D10: PERMISOS | E10: 10 | F10: 12 | G10: 2 | I10: 5C28
B11: 2021-05-05 | C11: C32 | D11: REUNIÓN O CAPACITACIÓN | E11: 8 | F11: 15 | G11: 2 | I11: 5C32
B12: 2021-05-05 | C12: C13 | D12: FALTA DE CLARIDAD EN INFORMACIÓN Y/O FICHAS TÉCNICAS | E12: 5 | F12: 10 | G12: 0.8333333333 | I12: 5C13
B13: 2021-06-06 | C13: C29 | D13: ACCIDENTE DE TRABAJO | E13: 10 | F13: 60 | G13: 10 | I13: 6C29
B14: 2021-06-06 | C14: C32 | D14: REUNIÓN O CAPACITACIÓN | E14: 12 | F14: 20 | G14: 4 | I14: 6C32
B15: 2021-06-06 | C15: C32 | D15: REUNIÓN O CAPACITACIÓN | E15: 5 | F15: 45 | G15: 3.75 | I15: 6C32
B16: 2021-01-12 | C16: C12 | D16: CAMBIO DE HERRAMIENTA | E16: 12 | F16: 15 | G16: 3 | I16: 1C12
B17: 2021-01-12 | C17: C29 | D17: PRUEBAS O ENSAYOS | E17: 5 | F17: 12 | G17: 1 | I17: 1C29
B18: 2021-01-12 | C18: C16 | D18: DAÑO DE MÁQUINA | E18: 8 | F18: 20 | G18: 2.666666667 | I18: 1C16
B19: 2021-02-02 | C19: C28 | D19: PERMISOS | E19: 10 | F19: 12 | G19: 2 | I19: 2C28
B20: 2021-02-02 | C20: C32 | D20: REUNIÓN O CAPACITACIÓN | E20: 8 | F20: 15 | G20: 2 | I20: 2C32
B21: 2021-02-02 | C21: C13 | D21: FALTA DE CLARIDAD EN INFORMACIÓN Y/O FICHAS TÉCNICAS | E21: 5 | F21: 10 | G21: 0.8333333333 | I21: 2C13
B22: 2021-02-02 | C22: C29 | D22: ACCIDENTE DE TRABAJO | E22: 10 | F22: 60 | G22: 10 | I22: 2C29
B23: 2021-03-03 | C23: C30 | D23: SOLICITUD DE MATERIALES NO PARAMETRIZADOS | E23: 8 | F23: 45 | G23: 6 | I23: 3C30
B24: 2021-03-03 | C24: C28 | D24: PERMISOS | E24: 10 | F24: 12 | G24: 2 | I24: 3C28
B25: 2021-04-04 | C25: C21 | D25: PRUEBAS O ENSAYOS | E25: 5 | F25: 15 | G25: 1.25 | I25: 4C21
B26: 2021-04-04 | C26: C26 | D26: ACCIDENTE DE TRABAJO | E26: 1 | F26: 45 | G26: 0.75 | I26: 4C26
B27: 2021-04-04 | C27: C28 | D27: ASEO | E27: 1 | F27: 12 | G27: 0.2 | I27: 4C28
B28: 2021-04-04 | C28: C29 | D28: REUNIÓN O CAPACITACIÓN | E28: 5 | F28: 15 | G28: 1.25 | I28: 4C29
B29: 2021-04-04 | C29: C30 | D29: SOLICITUD DE MATERIALES NO PARAMETRIZADOS | E29: 8 | F29: 45 | G29: 6 | I29: 4C30
B30: 2021-04-04 | C30: C28 | D30: PERMISOS | E30: 10 | F30: 12 | G30: 2 | I30: 4C28
B31: 00:00:00 | G31: 0 | I31: 1
B32: 00:00:00 | G32: 0 | I32: 1
B33: 00:00:00 | G33: 0 | I33: 1
B34: 00:00:00 | G34: 0 | I34: 1
B35: 00:00:00 | G35: 0 | I35: 1
B36: 00:00:00 | G36: 0 | I36: 1
I37: 1
I38: 1
I39: 1
I40: 1
I41: 1
I42: 1
I43: 1
I44: 1
I45: 1
I46: 1
I47: 1
I48: 1
I49: 1
I50: 1
I51: 1
I52: 1
I53: 1
I54: 1
I55: 1
I56: 1
I57: 1
I58: 1
I59: 1
I60: 1
I61: 1
I62: 1
I63: 1
I64: 1
I65: 1
I66: 1
I67: 1
I68: =CONCATENATE(MONTH(B68),C68) -> 1
I69: 1
I70: 1
I71: 1
I72: 1
I73: 1
I74: 1
I75: 1
I76: 1
I77: 1
I78: 1
I79: 1
I80: 1
I81: 1
I82: 1
I83: 1
I84: 1
I85: 1
I86: 1
I87: 1
I88: 1
I89: 1
I90: 1
I91: 1
I92: 1
I93: 1
I94: 1
I95: 1
I96: 1
I97: 1
I98: 1
I99: 1
I100: 1
I101: 1
I102: 1
I103: 1
I104: 1
I105: 1
I106: 1
I107: 1
I108: 1
I109: 1
I110: 1
I111: 1
I112: 1
I113: 1
I114: 1
I115: 1
I116: 1
I117: 1
I118: 1
I119: 1
I120: 1
I121: 1
I122: 1
I123: 1
I124: 1
I125: 1
I126: 1
I127: 1
I128: 1
I129: 1
I130: 1
I131: 1
I132: =CONCATENATE(MONTH(B132),C132) -> 1
I133: 1
I134: 1
I135: 1
I136: 1
I137: 1
I138: 1
I139: 1
I140: 1
I141: 1
I142: 1
I143: 1
I144: 1
I145: 1
I146: 1
I147: 1
I148: 1
I149: 1
I150: 1
I151: 1
I152: 1
I153: 1
I154: 1
I155: 1
I156: 1
I157: 1
I158: 1
I159: 1
I160: 1
I161: 1
I162: 1
I163: 1
I164: 1
I165: 1
I166: 1
I167: 1
I168: 1
I169: 1
I170: 1
I171: 1
I172: 1
I173: 1
I174: 1
I175: 1
I176: 1
I177: 1
I178: 1
I179: 1
I180: 1
I181: 1
I182: 1
I183: 1
I184: 1
I185: 1
I186: 1
I187: 1
I188: 1
I189: 1
I190: 1
I191: 1
I192: 1
I193: 1
I194: 1
I195: 1
I196: =CONCATENATE(MONTH(B196),C196) -> 1
I197: 1
I198: 1
I199: 1
I200: 1
I201: 1
... 799 more rows

Sheet Metricas
B2: MÉTRICA DE EFICIENCIA OPERACIONAL
C4: ENE | D4: FEB | E4: MAR | F4: ABR | G4: MAY | H4: JUN | I4: JUL | J4: AGO | K4: SEP | L4: OCT | M4: NOV | N4: DIC | O4: EFI
C5: 1 | D5: 2 | E5: 3 | F5: 4 | G5: 5 | H5: 6 | I5: 7 | J5: 8 | K5: 9 | L5: 10 | M5: 11 | N5: 12 | O5: PRO.
B6: MECANIZADO | C6: =IFERROR(SUMIF('BdD Efi'!$L$3:$L$1000,CONCATENATE(C$5,$B6),'BdD Efi'!$I$3:$I$1000)/SUMIF('BdD Efi'!$L$3:$L$1000,CONCATENATE(C$5,$B6),'BdD Efi'!$G$3:$G$1000),"") ->  | D6: =IFERROR(SUMIF('BdD Efi'!$L$3:$L$1000,CONCATENATE(D$5,$B6),'BdD Efi'!$I$3:$I$1000)/SUMIF('BdD Efi'!$L$3:$L$1000,CONCATENATE(D$5,$B6),'BdD Efi'!$G$3:$G$1000),"") -> 0.9496527778 | E6: =IFERROR(SUMIF('BdD Efi'!$L$3:$L$1000,CONCATENATE(E$5,$B6),'BdD Efi'!$I$3:$I$1000)/SUMIF('BdD Efi'!$L$3:$L$1000,CONCATENATE(E$5,$B6),'BdD Efi'!$G$3:$G$1000),"") -> 0.55625 | F6: =IFERROR(SUMIF('BdD Efi'!$L$3:$L$1000,CONCATENATE(F$5,$B6),'BdD Efi'!$I$3:$I$1000)/SUMIF('BdD Efi'!$L$3:$L$1000,CONCATENATE(F$5,$B6),'BdD Efi'!$G$3:$G$1000),"") ->  | G6: =IFERROR(SUMIF('BdD Efi'!$L$3:$L$1000,CONCATENATE(G$5,$B6),'BdD Efi'!$I$3:$I$1000)/SUMIF('BdD Efi'!$L$3:$L$1000,CONCATENATE(G$5,$B6),'BdD Efi'!$G$3:$G$1000),"") ->  | H6: =IFERROR(SUMIF('BdD Efi'!$L$3:$L$1000,CONCATENATE(H$5,$B6),'BdD Efi'!$I$3:$I$1000)/SUMIF('BdD Efi'!$L$3:$L$1000,CONCATENATE(H$5,$B6),'BdD Efi'!$G$3:$G$1000),"") ->  | I6: =IFERROR(SUMIF('BdD Efi'!$L$3:$L$1000,CONCATENATE(I$5,$B6),'BdD Efi'!$I$3:$I$1000)/SUMIF('BdD Efi'!$L$3:$L$1000,CONCATENATE(I$5,$B6),'BdD Efi'!$G$3:$G$1000),"") ->  | J6: =IFERROR(SUMIF('BdD Efi'!$L$3:$L$1000,CONCATENATE(J$5,$B6),'BdD Efi'!$I$3:$I$1000)/SUMIF('BdD Efi'!$L$3:$L$1000,CONCATENATE(J$5,$B6),'BdD Efi'!$G$3:$G$1000),"") ->  | K6: =IFERROR(SUMIF('BdD Efi'!$L$3:$L$1000,CONCATENATE(K$5,$B6),'BdD Efi'!$I$3:$I$1000)/SUMIF('BdD Efi'!$L$3:$L$1000,CONCATENATE(K$5,$B6),'BdD Efi'!$G$3:$G$1000),"") ->  | L6: =IFERROR(SUMIF('BdD Efi'!$L$3:$L$1000,CONCATENATE(L$5,$B6),'BdD Efi'!$I$3:$I$1000)/SUMIF('BdD Efi'!$L$3:$L$1000,CONCATENATE(L$5,$B6),'BdD Efi'!$G$3:$G$1000),"") ->  | M6: =IFERROR(SUMIF('BdD Efi'!$L$3:$L$1000,CONCATENATE(M$5,$B6),'BdD Efi'!$I$3:$I$1000)/SUMIF('BdD Efi'!$L$3:$L$1000,CONCATENATE(M$5,$B6),'BdD Efi'!$G$3:$G$1000),"") ->  | N6: =IFERROR(SUMIF('BdD Efi'!$L$3:$L$1000,CONCATENATE(N$5,$B6),'BdD Efi'!$I$3:$I$1000)/SUMIF('BdD Efi'!$L$3:$L$1000,CONCATENATE(N$5,$B6),'BdD Efi'!$G$3:$G$1000),"") ->  | O6: =IFERROR(AVERAGE(C6:N6),0) -> 0.7529513889
B7: CORTE | C7: =IFERROR(SUMIF('BdD Efi'!$L$3:$L$1000,CONCATENATE(C$5,$B7),'BdD Efi'!$I$3:$I$1000)/SUMIF('BdD Efi'!$L$3:$L$1000,CONCATENATE(C$5,$B7),'BdD Efi'!$G$3:$G$1000),"") ->  | D7: =IFERROR(SUMIF('BdD Efi'!$L$3:$L$1000,CONCATENATE(D$5,$B7),'BdD Efi'!$I$3:$I$1000)/SUMIF('BdD Efi'!$L$3:$L$1000,CONCATENATE(D$5,$B7),'BdD Efi'!$G$3:$G$1000),"") ->  | E7: =IFERROR(SUMIF('BdD Efi'!$L$3:$L$1000,CONCATENATE(E$5,$B7),'BdD Efi'!$I$3:$I$1000)/SUMIF('BdD Efi'!$L$3:$L$1000,CONCATENATE(E$5,$B7),'BdD Efi'!$G$3:$G$1000),"") ->  | F7: =IFERROR(SUMIF('BdD Efi'!$L$3:$L$1000,CONCATENATE(F$5,$B7),'BdD Efi'!$I$3:$I$1000)/SUMIF('BdD Efi'!$L$3:$L$1000,CONCATENATE(F$5,$B7),'BdD Efi'!$G$3:$G$1000),"") ->  | G7: =IFERROR(SUMIF('BdD Efi'!$L$3:$L$1000,CONCATENATE(G$5,$B7),'BdD Efi'!$I$3:$I$1000)/SUMIF('BdD Efi'!$L$3:$L$1000,CONCATENATE(G$5,$B7),'BdD Efi'!$G$3:$G$1000),"") ->  | H7: =IFERROR(SUMIF('BdD Efi'!$L$3:$L$1000,CONCATENATE(H$5,$B7),'BdD Efi'!$I$3:$I$1000)/SUMIF('BdD Efi'!$L$3:$L$1000,CONCATENATE(H$5,$B7),'BdD Efi'!$G$3:$G$1000),"") ->  | I7: =IFERROR(SUMIF('BdD Efi'!$L$3:$L$1000,CONCATENATE(I$5,$B7),'BdD Efi'!$I$3:$I$1000)/SUMIF('BdD Efi'!$L$3:$L$1000,CONCATENATE(I$5,$B7),'BdD Efi'!$G$3:$G$1000),"") -> 0.9479166667 | J7: =IFERROR(SUMIF('BdD Efi'!$L$3:$L$1000,CONCATENATE(J$5,$B7),'BdD Efi'!$I$3:$I$1000)/SUMIF('BdD Efi'!$L$3:$L$1000,CONCATENATE(J$5,$B7),'BdD Efi'!$G$3:$G$1000),"") ->  | K7: =IFERROR(SUMIF('BdD Efi'!$L$3:$L$1000,CONCATENATE(K$5,$B7),'BdD Efi'!$I$3:$I$1000)/SUMIF('BdD Efi'!$L$3:$L$1000,CONCATENATE(K$5,$B7),'BdD Efi'!$G$3:$G$1000),"") ->  | L7: =IFERROR(SUMIF('BdD Efi'!$L$3:$L$1000,CONCATENATE(L$5,$B7),'BdD Efi'!$I$3:$I$1000)/SUMIF('BdD Efi'!$L$3:$L$1000,CONCATENATE(L$5,$B7),'BdD Efi'!$G$3:$G$1000),"") ->  | M7: =IFERROR(SUMIF('BdD Efi'!$L$3:$L$1000,CONCATENATE(M$5,$B7),'BdD Efi'!$I$3:$I$1000)/SUMIF('BdD Efi'!$L$3:$L$1000,CONCATENATE(M$5,$B7),'BdD Efi'!$G$3:$G$1000),"") ->  | N7: =IFERROR(SUMIF('BdD Efi'!$L$3:$L$1000,CONCATENATE(N$5,$B7),'BdD Efi'!$I$3:$I$1000)/SUMIF('BdD Efi'!$L$3:$L$1000,CONCATENATE(N$5,$B7),'BdD Efi'!$G$3:$G$1000),"") ->  | O7: =IFERROR(AVERAGE(C7:N7),0) -> 0.9479166667
B8: SOLDADURA | C8: =IFERROR(SUMIF('BdD Efi'!$L$3:$L$1000,CONCATENATE(C$5,$B8),'BdD Efi'!$I$3:$I$1000)/SUMIF('BdD Efi'!$L$3:$L$1000,CONCATENATE(C$5,$B8),'BdD Efi'!$G$3:$G$1000),"") ->  | D8: =IFERROR(SUMIF('BdD Efi'!$L$3:$L$1000,CONCATENATE(D$5,$B8),'BdD Efi'!$I$3:$I$1000)/SUMIF('BdD Efi'!$L$3:$L$1000,CONCATENATE(D$5,$B8),'BdD Efi'!$G$3:$G$1000),"") ->  | E8: =IFERROR(SUMIF('BdD Efi'!$L$3:$L$1000,CONCATENATE(E$5,$B8),'BdD Efi'!$I$3:$I$1000)/SUMIF('BdD Efi'!$L$3:$L$1000,CONCATENATE(E$5,$B8),'BdD Efi'!$G$3:$G$1000),"") ->  | F8: =IFERROR(SUMIF('BdD Efi'!$L$3:$L$1000,CONCATENATE(F$5,$B8),'BdD Efi'!$I$3:$I$1000)/SUMIF('BdD Efi'!$L$3:$L$1000,CONCATENATE(F$5,$B8),'BdD Efi'!$G$3:$G$1000),"") -> 0.9496527778 | G8: =IFERROR(SUMIF('BdD Efi'!$L$3:$L$1000,CONCATENATE(G$5,$B8),'BdD Efi'!$I$3:$I$1000)/SUMIF('BdD Efi'!$L$3:$L$1000,CONCATENATE(G$5,$B8),'BdD Efi'!$G$3:$G$1000),"") -> 0.9496527778 | H8: =IFERROR(SUMIF('BdD Efi'!$L$3:$L$1000,CONCATENATE(H$5,$B8),'BdD Efi'!$I$3:$I$1000)/SUMIF('BdD Efi'!$L$3:$L$1000,CONCATENATE(H$5,$B8),'BdD Efi'!$G$3:$G$1000),"") ->  | I8: =IFERROR(SUMIF('BdD Efi'!$L$3:$L$1000,CONCATENATE(I$5,$B8),'BdD Efi'!$I$3:$I$1000)/SUMIF('BdD Efi'!$L$3:$L$1000,CONCATENATE(I$5,$B8),'BdD Efi'!$G$3:$G$1000),"") -> 0.906875 | J8: =IFERROR(SUMIF('BdD Efi'!$L$3:$L$1000,CONCATENATE(J$5,$B8),'BdD Efi'!$I$3:$I$1000)/SUMIF('BdD Efi'!$L$3:$L$1000,CONCATENATE(J$5,$B8),'BdD Efi'!$G$3:$G$1000),"") ->  | K8: =IFERROR(SUMIF('BdD Efi'!$L$3:$L$1000,CONCATENATE(K$5,$B8),'BdD Efi'!$I$3:$I$1000)/SUMIF('BdD Efi'!$L$3:$L$1000,CONCATENATE(K$5,$B8),'BdD Efi'!$G$3:$G$1000),"") ->  | L8: =IFERROR(SUMIF('BdD Efi'!$L$3:$L$1000,CONCATENATE(L$5,$B8),'BdD Efi'!$I$3:$I$1000)/SUMIF('BdD Efi'!$L$3:$L$1000,CONCATENATE(L$5,$B8),'BdD Efi'!$G$3:$G$1000),"") ->  | M8: =IFERROR(SUMIF('BdD Efi'!$L$3:$L$1000,CONCATENATE(M$5,$B8),'BdD Efi'!$I$3:$I$1000)/SUMIF('BdD Efi'!$L$3:$L$1000,CONCATENATE(M$5,$B8),'BdD Efi'!$G$3:$G$1000),"") ->  | N8: =IFERROR(SUMIF('BdD Efi'!$L$3:$L$1000,CONCATENATE(N$5,$B8),'BdD Efi'!$I$3:$I$1000)/SUMIF('BdD Efi'!$L$3:$L$1000,CONCATENATE(N$5,$B8),'BdD Efi'!$G$3:$G$1000),"") ->  | O8: 0.9353935185
B9: ENSAMBLE | C9: =IFERROR(SUMIF('BdD Efi'!$L$3:$L$1000,CONCATENATE(C$5,$B9),'BdD Efi'!$I$3:$I$1000)/SUMIF('BdD Efi'!$L$3:$L$1000,CONCATENATE(C$5,$B9),'BdD Efi'!$G$3:$G$1000),"") ->  | D9: =IFERROR(SUMIF('BdD Efi'!$L$3:$L$1000,CONCATENATE(D$5,$B9),'BdD Efi'!$I$3:$I$1000)/SUMIF('BdD Efi'!$L$3:$L$1000,CONCATENATE(D$5,$B9),'BdD Efi'!$G$3:$G$1000),"") ->  | E9: =IFERROR(SUMIF('BdD Efi'!$L$3:$L$1000,CONCATENATE(E$5,$B9),'BdD Efi'!$I$3:$I$1000)/SUMIF('BdD Efi'!$L$3:$L$1000,CONCATENATE(E$5,$B9),'BdD Efi'!$G$3:$G$1000),"") ->  | F9: =IFERROR(SUMIF('BdD Efi'!$L$3:$L$1000,CONCATENATE(F$5,$B9),'BdD Efi'!$I$3:$I$1000)/SUMIF('BdD Efi'!$L$3:$L$1000,CONCATENATE(F$5,$B9),'BdD Efi'!$G$3:$G$1000),"") ->  | G9: =IFERROR(SUMIF('BdD Efi'!$L$3:$L$1000,CONCATENATE(G$5,$B9),'BdD Efi'!$I$3:$I$1000)/SUMIF('BdD Efi'!$L$3:$L$1000,CONCATENATE(G$5,$B9),'BdD Efi'!$G$3:$G$1000),"") ->  | H9: =IFERROR(SUMIF('BdD Efi'!$L$3:$L$1000,CONCATENATE(H$5,$B9),'BdD Efi'!$I$3:$I$1000)/SUMIF('BdD Efi'!$L$3:$L$1000,CONCATENATE(H$5,$B9),'BdD Efi'!$G$3:$G$1000),"") ->  | I9: =IFERROR(SUMIF('BdD Efi'!$L$3:$L$1000,CONCATENATE(I$5,$B9),'BdD Efi'!$I$3:$I$1000)/SUMIF('BdD Efi'!$L$3:$L$1000,CONCATENATE(I$5,$B9),'BdD Efi'!$G$3:$G$1000),"") ->  | J9: =IFERROR(SUMIF('BdD Efi'!$L$3:$L$1000,CONCATENATE(J$5,$B9),'BdD Efi'!$I$3:$I$1000)/SUMIF('BdD Efi'!$L$3:$L$1000,CONCATENATE(J$5,$B9),'BdD Efi'!$G$3:$G$1000),"") ->  | K9: =IFERROR(SUMIF('BdD Efi'!$L$3:$L$1000,CONCATENATE(K$5,$B9),'BdD Efi'!$I$3:$I$1000)/SUMIF('BdD Efi'!$L$3:$L$1000,CONCATENATE(K$5,$B9),'BdD Efi'!$G$3:$G$1000),"") ->  | L9: =IFERROR(SUMIF('BdD Efi'!$L$3:$L$1000,CONCATENATE(L$5,$B9),'BdD Efi'!$I$3:$I$1000)/SUMIF('BdD Efi'!$L$3:$L$1000,CONCATENATE(L$5,$B9),'BdD Efi'!$G$3:$G$1000),"") ->  | M9: =IFERROR(SUMIF('BdD Efi'!$L$3:$L$1000,CONCATENATE(M$5,$B9),'BdD Efi'!$I$3:$I$1000)/SUMIF('BdD Efi'!$L$3:$L$1000,CONCATENATE(M$5,$B9),'BdD Efi'!$G$3:$G$1000),"") ->  | N9: =IFERROR(SUMIF('BdD Efi'!$L$3:$L$1000,CONCATENATE(N$5,$B9),'BdD Efi'!$I$3:$I$1000)/SUMIF('BdD Efi'!$L$3:$L$1000,CONCATENATE(N$5,$B9),'BdD Efi'!$G$3:$G$1000),"") ->  | O9: 0
B10: PINTURA | C10: =IFERROR(SUMIF('BdD Efi'!$L$3:$L$1000,CONCATENATE(C$5,$B10),'BdD Efi'!$I$3:$I$1000)/SUMIF('BdD Efi'!$L$3:$L$1000,CONCATENATE(C$5,$B10),'BdD Efi'!$G$3:$G$1000),"") -> 0.8666666667 | D10: =IFERROR(SUMIF('BdD Efi'!$L$3:$L$1000,CONCATENATE(D$5,$B10),'BdD Efi'!$I$3:$I$1000)/SUMIF('BdD Efi'!$L$3:$L$1000,CONCATENATE(D$5,$B10),'BdD Efi'!$G$3:$G$1000),"") -> 0.906875 | E10: =IFERROR(SUMIF('BdD Efi'!$L$3:$L$1000,CONCATENATE(E$5,$B10),'BdD Efi'!$I$3:$I$1000)/SUMIF('BdD Efi'!$L$3:$L$1000,CONCATENATE(E$5,$B10),'BdD Efi'!$G$3:$G$1000),"") ->  | F10: =IFERROR(SUMIF('BdD Efi'!$L$3:$L$1000,CONCATENATE(F$5,$B10),'BdD Efi'!$I$3:$I$1000)/SUMIF('BdD Efi'!$L$3:$L$1000,CONCATENATE(F$5,$B10),'BdD Efi'!$G$3:$G$1000),"") ->  | G10: =IFERROR(SUMIF('BdD Efi'!$L$3:$L$1000,CONCATENATE(G$5,$B10),'BdD Efi'!$I$3:$I$1000)/SUMIF('BdD Efi'!$L$3:$L$1000,CONCATENATE(G$5,$B10),'BdD Efi'!$G$3:$G$1000),"") ->  | H10: =IFERROR(SUMIF('BdD Efi'!$L$3:$L$1000,CONCATENATE(H$5,$B10),'BdD Efi'!$I$3:$I$1000)/SUMIF('BdD Efi'!$L$3:$L$1000,CONCATENATE(H$5,$B10),'BdD Efi'!$G$3:$G$1000),"") -> 0.55625 | I10: =IFERROR(SUMIF('BdD Efi'!$L$3:$L$1000,CONCATENATE(I$5,$B10),'BdD Efi'!$I$3:$I$1000)/SUMIF('BdD Efi'!$L$3:$L$1000,CONCATENATE(I$5,$B10),'BdD Efi'!$G$3:$G$1000),"") ->  | J10: =IFERROR(SUMIF('BdD Efi'!$L$3:$L$1000,CONCATENATE(J$5,$B10),'BdD Efi'!$I$3:$I$1000)/SUMIF('BdD Efi'!$L$3:$L$1000,CONCATENATE(J$5,$B10),'BdD Efi'!$G$3:$G$1000),"") ->  | K10: =IFERROR(SUMIF('BdD Efi'!$L$3:$L$1000,CONCATENATE(K$5,$B10),'BdD Efi'!$I$3:$I$1000)/SUMIF('BdD Efi'!$L$3:$L$1000,CONCATENATE(K$5,$B10),'BdD Efi'!$G$3:$G$1000),"") ->  | L10: =IFERROR(SUMIF('BdD Efi'!$L$3:$L$1000,CONCATENATE(L$5,$B10),'BdD Efi'!$I$3:$I$1000)/SUMIF('BdD Efi'!$L$3:$L$1000,CONCATENATE(L$5,$B10),'BdD Efi'!$G$3:$G$1000),"") ->  | M10: =IFERROR(SUMIF('BdD Efi'!$L$3:$L$1000,CONCATENATE(M$5,$B10),'BdD Efi'!$I$3:$I$1000)/SUMIF('BdD Efi'!$L$3:$L$1000,CONCATENATE(M$5,$B10),'BdD Efi'!$G$3:$G$1000),"") ->  | N10: =IFERROR(SUMIF('BdD Efi'!$L$3:$L$1000,CONCATENATE(N$5,$B10),'BdD Efi'!$I$3:$I$1000)/SUMIF('BdD Efi'!$L$3:$L$1000,CONCATENATE(N$5,$B10),'BdD Efi'!$G$3:$G$1000),"") ->  | O10: 0.7765972222
B11: EMPAQUE | C11: =IFERROR(SUMIF('BdD Efi'!$L$3:$L$1000,CONCATENATE(C$5,$B11),'BdD Efi'!$I$3:$I$1000)/SUMIF('BdD Efi'!$L$3:$L$1000,CONCATENATE(C$5,$B11),'BdD Efi'!$G$3:$G$1000),"") ->  | D11: =IFERROR(SUMIF('BdD Efi'!$L$3:$L$1000,CONCATENATE(D$5,$B11),'BdD Efi'!$I$3:$I$1000)/SUMIF('BdD Efi'!$L$3:$L$1000,CONCATENATE(D$5,$B11),'BdD Efi'!$G$3:$G$1000),"") ->  | E11: =IFERROR(SUMIF('BdD Efi'!$L$3:$L$1000,CONCATENATE(E$5,$B11),'BdD Efi'!$I$3:$I$1000)/SUMIF('BdD Efi'!$L$3:$L$1000,CONCATENATE(E$5,$B11),'BdD Efi'!$G$3:$G$1000),"") ->  | F11: =IFERROR(SUMIF('BdD Efi'!$L$3:$L$1000,CONCATENATE(F$5,$B11),'BdD Efi'!$I$3:$I$1000)/SUMIF('BdD Efi'!$L$3:$L$1000,CONCATENATE(F$5,$B11),'BdD Efi'!$G$3:$G$1000),"") -> 0.7287037037 | G11: =IFERROR(SUMIF('BdD Efi'!$L$3:$L$1000,CONCATENATE(G$5,$B11),'BdD Efi'!$I$3:$I$1000)/SUMIF('BdD Efi'!$L$3:$L$1000,CONCATENATE(G$5,$B11),'BdD Efi'!$G$3:$G$1000),"") ->  | H11: =IFERROR(SUMIF('BdD Efi'!$L$3:$L$1000,CONCATENATE(H$5,$B11),'BdD Efi'!$I$3:$I$1000)/SUMIF('BdD Efi'!$L$3:$L$1000,CONCATENATE(H$5,$B11),'BdD Efi'!$G$3:$G$1000),"") ->  | I11: =IFERROR(SUMIF('BdD Efi'!$L$3:$L$1000,CONCATENATE(I$5,$B11),'BdD Efi'!$I$3:$I$1000)/SUMIF('BdD Efi'!$L$3:$L$1000,CONCATENATE(I$5,$B11),'BdD Efi'!$G$3:$G$1000),"") ->  | J11: =IFERROR(SUMIF('BdD Efi'!$L$3:$L$1000,CONCATENATE(J$5,$B11),'BdD Efi'!$I$3:$I$1000)/SUMIF('BdD Efi'!$L$3:$L$1000,CONCATENATE(J$5,$B11),'BdD Efi'!$G$3:$G$1000),"") ->  | K11: =IFERROR(SUMIF('BdD Efi'!$L$3:$L$1000,CONCATENATE(K$5,$B11),'BdD Efi'!$I$3:$I$1000)/SUMIF('BdD Efi'!$L$3:$L$1000,CONCATENATE(K$5,$B11),'BdD Efi'!$G$3:$G$1000),"") ->  | L11: =IFERROR(SUMIF('BdD Efi'!$L$3:$L$1000,CONCATENATE(L$5,$B11),'BdD Efi'!$I$3:$I$1000)/SUMIF('BdD Efi'!$L$3:$L$1000,CONCATENATE(L$5,$B11),'BdD Efi'!$G$3:$G$1000),"") ->  | M11: =IFERROR(SUMIF('BdD Efi'!$L$3:$L$1000,CONCATENATE(M$5,$B11),'BdD Efi'!$I$3:$I$1000)/SUMIF('BdD Efi'!$L$3:$L$1000,CONCATENATE(M$5,$B11),'BdD Efi'!$G$3:$G$1000),"") ->  | N11: =IFERROR(SUMIF('BdD Efi'!$L$3:$L$1000,CONCATENATE(N$5,$B11),'BdD Efi'!$I$3:$I$1000)/SUMIF('BdD Efi'!$L$3:$L$1000,CONCATENATE(N$5,$B11),'BdD Efi'!$G$3:$G$1000),"") ->  | O11: 0.7287037037
B12: EFI-MES | C12: =IFERROR(AVERAGE(C6:C11),0) -> 0.8666666667 | D12: =IFERROR(AVERAGE(D6:D11),0) -> 0.9282638889 | E12: 0.55625 | F12: 0.8391782407 | G12: 0.9496527778 | H12: 0.55625 | I12: 0.9273958333 | J12: 0 | K12: 0 | L12: 0 | M12: 0 | N12: 0
B29: MÉTRICA DE TIEMPOS EN HORAS IMPRODUCTIVOS
C31: ENE | D31: FEB | E31: MAR | F31: ABR | G31: MAY | H31: JUN | I31: JUL | J31: AGO | K31: SEP | L31: OCT | M31: NOV | N31: DIC | O31: EFI
C32: 1 | D32: 2 | E32: 3 | F32: 4 | G32: 5 | H32: 6 | I32: 7 | J32: 8 | K32: 9 | L32: 10 | M32: 11 | N32: 12 | O32: PRO.
B33: C10 | C33: =SUMIF('BdD Imp'!$I$3:$I$1000,CONCATENATE(C$32,$B33),'BdD Imp'!$G$3:$G$1000) -> 0 | D33: =SUMIF('BdD Imp'!$I$3:$I$1000,CONCATENATE(D$32,$B33),'BdD Imp'!$G$3:$G$1000) -> 0 | E33: =SUMIF('BdD Imp'!$I$3:$I$1000,CONCATENATE(E$32,$B33),'BdD Imp'!$G$3:$G$1000) -> 0 | F33: =SUMIF('BdD Imp'!$I$3:$I$1000,CONCATENATE(F$32,$B33),'BdD Imp'!$G$3:$G$1000) -> 0 | G33: =SUMIF('BdD Imp'!$I$3:$I$1000,CONCATENATE(G$32,$B33),'BdD Imp'!$G$3:$G$1000) -> 0 | H33: =SUMIF('BdD Imp'!$I$3:$I$1000,CONCATENATE(H$32,$B33),'BdD Imp'!$G$3:$G$1000) -> 0 | I33: =SUMIF('BdD Imp'!$I$3:$I$1000,CONCATENATE(I$32,$B33),'BdD Imp'!$G$3:$G$1000) -> 0 | J33: =SUMIF('BdD Imp'!$I$3:$I$1000,CONCATENATE(J$32,$B33),'BdD Imp'!$G$3:$G$1000) -> 0 | K33: =SUMIF('BdD Imp'!$I$3:$I$1000,CONCATENATE(K$32,$B33),'BdD Imp'!$G$3:$G$1000) -> 0 | L33: =SUMIF('BdD Imp'!$I$3:$I$1000,CONCATENATE(L$32,$B33),'BdD Imp'!$G$3:$G$1000) -> 0 | M33: =SUMIF('BdD Imp'!$I$3:$I$1000,CONCATENATE(M$32,$B33),'BdD Imp'!$G$3:$G$1000) -> 0 | N33: =SUMIF('BdD Imp'!$I$3:$I$1000,CONCATENATE(N$32,$B33),'BdD Imp'!$G$3:$G$1000) -> 0 | O33: =SUM(C33:N33) -> 0
B34: C11 | C34: =SUMIF('BdD Imp'!$I$3:$I$1000,CONCATENATE(C$32,$B34),'BdD Imp'!$G$3:$G$1000) -> 0 | D34: =SUMIF('BdD Imp'!$I$3:$I$1000,CONCATENATE(D$32,$B34),'BdD Imp'!$G$3:$G$1000) -> 0 | E34: =SUMIF('BdD Imp'!$I$3:$I$1000,CONCATENATE(E$32,$B34),'BdD Imp'!$G$3:$G$1000) -> 0 | F34: =SUMIF('BdD Imp'!$I$3:$I$1000,CONCATENATE(F$32,$B34),'BdD Imp'!$G$3:$G$1000) -> 0 | G34: =SUMIF('BdD Imp'!$I$3:$I$1000,CONCATENATE(G$32,$B34),'BdD Imp'!$G$3:$G$1000) -> 0 | H34: =SUMIF('BdD Imp'!$I$3:$I$1000,CONCATENATE(H$32,$B34),'BdD Imp'!$G$3:$G$1000) -> 0 | I34: =SUMIF('BdD Imp'!$I$3:$I$1000,CONCATENATE(I$32,$B34),'BdD Imp'!$G$3:$G$1000) -> 0 | J34: =SUMIF('BdD Imp'!$I$3:$I$1000,CONCATENATE(J$32,$B34),'BdD Imp'!$G$3:$G$1000) -> 0 | K34: =SUMIF('BdD Imp'!$I$3:$I$1000,CONCATENATE(K$32,$B34),'BdD Imp'!$G$3:$G$1000) -> 0 | L34: =SUMIF('BdD Imp'!$I$3:$I$1000,CONCATENATE(L$32,$B34),'BdD Imp'!$G$3:$G$1000) -> 0 | M34: =SUMIF('BdD Imp'!$I$3:$I$1000,CONCATENATE(M$32,$B34),'BdD Imp'!$G$3:$G$1000) -> 0 | N34: =SUMIF('BdD Imp'!$I$3:$I$1000,CONCATENATE(N$32,$B34),'BdD Imp'!$G$3:$G$1000) -> 0 | O34: =SUM(C34:N34) -> 0
B35: C12 | C35: =SUMIF('BdD Imp'!$I$3:$I$1000,CONCATENATE(C$32,$B35),'BdD Imp'!$G$3:$G$1000) -> 3 | D35: =SUMIF('BdD Imp'!$I$3:$I$1000,CONCATENATE(D$32,$B35),'BdD Imp'!$G$3:$G$1000) -> 0 | E35: =SUMIF('BdD Imp'!$I$3:$I$1000,CONCATENATE(E$32,$B35),'BdD Imp'!$G$3:$G$1000) -> 0 | F35: =SUMIF('BdD Imp'!$I$3:$I$1000,CONCATENATE(F$32,$B35),'BdD Imp'!$G$3:$G$1000) -> 0 | G35: =SUMIF('BdD Imp'!$I$3:$I$1000,CONCATENATE(G$32,$B35),'BdD Imp'!$G$3:$G$1000) -> 0 | H35: =SUMIF('BdD Imp'!$I$3:$I$1000,CONCATENATE(H$32,$B35),'BdD Imp'!$G$3:$G$1000) -> 0 | I35: =SUMIF('BdD Imp'!$I$3:$I$1000,CONCATENATE(I$32,$B35),'BdD Imp'!$G$3:$G$1000) -> 2.5 | J35: =SUMIF('BdD Imp'!$I$3:$I$1000,CONCATENATE(J$32,$B35),'BdD Imp'!$G$3:$G$1000) -> 0 | K35: =SUMIF('BdD Imp'!$I$3:$I$1000,CONCATENATE(K$32,$B35),'BdD Imp'!$G$3:$G$1000) -> 0 | L35: =SUMIF('BdD Imp'!$I$3:$I$1000,CONCATENATE(L$32,$B35),'BdD Imp'!$G$3:$G$1000) -> 0 | M35: =SUMIF('BdD Imp'!$I$3:$I$1000,CONCATENATE(M$32,$B35),'BdD Imp'!$G$3:$G$1000) -> 0 | N35: =SUMIF('BdD Imp'!$I$3:$I$1000,CONCATENATE(N$32,$B35),'BdD Imp'!$G$3:$G$1000) -> 0 | O35: 5.5
B36: C13 | C36: =SUMIF('BdD Imp'!$I$3:$I$1000,CONCATENATE(C$32,$B36),'BdD Imp'!$G$3:$G$1000) -> 0 | D36: =SUMIF('BdD Imp'!$I$3:$I$1000,CONCATENATE(D$32,$B36),'BdD Imp'!$G$3:$G$1000) -> 0.8333333333 | E36: =SUMIF('BdD Imp'!$I$3:$I$1000,CONCATENATE(E$32,$B36),'BdD Imp'!$G$3:$G$1000) -> 0 | F36: =SUMIF('BdD Imp'!$I$3:$I$1000,CONCATENATE(F$32,$B36),'BdD Imp'!$G$3:$G$1000) -> 0 | G36: =SUMIF('BdD Imp'!$I$3:$I$1000,CONCATENATE(G$32,$B36),'BdD Imp'!$G$3:$G$1000) -> 0.8333333333 | H36: =SUMIF('BdD Imp'!$I$3:$I$1000,CONCATENATE(H$32,$B36),'BdD Imp'!$G$3:$G$1000) -> 0 | I36: =SUMIF('BdD Imp'!$I$3:$I$1000,CONCATENATE(I$32,$B36),'BdD Imp'!$G$3:$G$1000) -> 0 | J36: =SUMIF('BdD Imp'!$I$3:$I$1000,CONCATENATE(J$32,$B36),'BdD Imp'!$G$3:$G$1000) -> 0 | K36: =SUMIF('BdD Imp'!$I$3:$I$1000,CONCATENATE(K$32,$B36),'BdD Imp'!$G$3:$G$1000) -> 0 | L36: =SUMIF('BdD Imp'!$I$3:$I$1000,CONCATENATE(L$32,$B36),'BdD Imp'!$G$3:$G$1000) -> 0 | M36: =SUMIF('BdD Imp'!$I$3:$I$1000,CONCATENATE(M$32,$B36),'BdD Imp'!$G$3:$G$1000) -> 0 | N36: =SUMIF('BdD Imp'!$I$3:$I$1000,CONCATENATE(N$32,$B36),'BdD Imp'!$G$3:$G$1000) -> 0 | O36: 1.666666667
B37: C14 | C37: =SUMIF('BdD Imp'!$I$3:$I$1000,CONCATENATE(C$32,$B37),'BdD Imp'!$G$3:$G$1000) -> 0 | D37: =SUMIF('BdD Imp'!$I$3:$I$1000,CONCATENATE(D$32,$B37),'BdD Imp'!$G$3:$G$1000) -> 0 | E37: =SUMIF('BdD Imp'!$I$3:$I$1000,CONCATENATE(E$32,$B37),'BdD Imp'!$G$3:$G$1000) -> 0 | F37: =SUMIF('BdD Imp'!$I$3:$I$1000,CONCATENATE(F$32,$B37),'BdD Imp'!$G$3:$G$1000) -> 0 | G37: =SUMIF('BdD Imp'!$I$3:$I$1000,CONCATENATE(G$32,$B37),'BdD Imp'!$G$3:$G$1000) -> 0 | H37: =SUMIF('BdD Imp'!$I$3:$I$1000,CONCATENATE(H$32,$B37),'BdD Imp'!$G$3:$G$1000) -> 0 | I37: =SUMIF('BdD Imp'!$I$3:$I$1000,CONCATENATE(I$32,$B37),'BdD Imp'!$G$3:$G$1000) -> 0 | J37: =SUMIF('BdD Imp'!$I$3:$I$1000,CONCATENATE(J$32,$B37),'BdD Imp'!$G$3:$G$1000) -> 0 | K37: =SUMIF('BdD Imp'!$I$3:$I$1000,CONCATENATE(K$32,$B37),'BdD Imp'!$G$3:$G$1000) -> 0 | L37: =SUMIF('BdD Imp'!$I$3:$I$1000,CONCATENATE(L$32,$B37),'BdD Imp'!$G$3:$G$1000) -> 0 | M37: =SUMIF('BdD Imp'!$I$3:$I$1000,CONCATENATE(M$32,$B37),'BdD Imp'!$G$3:$G$1000) -> 0 | N37: =SUMIF('BdD Imp'!$I$3:$I$1000,CONCATENATE(N$32,$B37),'BdD Imp'!$G$3:$G$1000) -> 0 | O37: 0
B38: C15 | C38: =SUMIF('BdD Imp'!$I$3:$I$1000,CONCATENATE(C$32,$B38),'BdD Imp'!$G$3:$G$1000) -> 0 | D38: =SUMIF('BdD Imp'!$I$3:$I$1000,CONCATENATE(D$32,$B38),'BdD Imp'!$G$3:$G$1000) -> 0 | E38: =SUMIF('BdD Imp'!$I$3:$I$1000,CONCATENATE(E$32,$B38),'BdD Imp'!$G$3:$G$1000) -> 0 | F38: =SUMIF('BdD Imp'!$I$3:$I$1000,CONCATENATE(F$32,$B38),'BdD Imp'!$G$3:$G$1000) -> 0 | G38: =SUMIF('BdD Imp'!$I$3:$I$1000,CONCATENATE(G$32,$B38),'BdD Imp'!$G$3:$G$1000) -> 0 | H38: =SUMIF('BdD Imp'!$I$3:$I$1000,CONCATENATE(H$32,$B38),'BdD Imp'!$G$3:$G$1000) -> 0 | I38: =SUMIF('BdD Imp'!$I$3:$I$1000,CONCATENATE(I$32,$B38),'BdD Imp'!$G$3:$G$1000) -> 0 | J38: =SUMIF('BdD Imp'!$I$3:$I$1000,CONCATENATE(J$32,$B38),'BdD Imp'!$G$3:$G$1000) -> 0 | K38: =SUMIF('BdD Imp'!$I$3:$I$1000,CONCATENATE(K$32,$B38),'BdD Imp'!$G$3:$G$1000) -> 0 | L38: =SUMIF('BdD Imp'!$I$3:$I$1000,CONCATENATE(L$32,$B38),'BdD Imp'!$G$3:$G$1000) -> 0 | M38: =SUMIF('BdD Imp'!$I$3:$I$1000,CONCATENATE(M$32,$B38),'BdD Imp'!$G$3:$G$1000) -> 0 | N38: =SUMIF('BdD Imp'!$I$3:$I$1000,CONCATENATE(N$32,$B38),'BdD Imp'!$G$3:$G$1000) -> 0 | O38: 0
B39: C16 | C39: =SUMIF('BdD Imp'!$I$3:$I$1000,CONCATENATE(C$32,$B39),'BdD Imp'!$G$3:$G$1000) -> 2.666666667 | D39: =SUMIF('BdD Imp'!$I$3:$I$1000,CONCATENATE(D$32,$B39),'BdD Imp'!$G$3:$G$1000) -> 0 | E39: =SUMIF('BdD Imp'!$I$3:$I$1000,CONCATENATE(E$32,$B39),'BdD Imp'!$G$3:$G$1000) -> 0 | F39: =SUMIF('BdD Imp'!$I$3:$I$1000,CONCATENATE(F$32,$B39),'BdD Imp'!$G$3:$G$1000) -> 0 | G39: =SUMIF('BdD Imp'!$I$3:$I$1000,CONCATENATE(G$32,$B39),'BdD Imp'!$G$3:$G$1000) -> 0 | H39: =SUMIF('BdD Imp'!$I$3:$I$1000,CONCATENATE(H$32,$B39),'BdD Imp'!$G$3:$G$1000) -> 0 | I39: =SUMIF('BdD Imp'!$I$3:$I$1000,CONCATENATE(I$32,$B39),'BdD Imp'!$G$3:$G$1000) -> 3.333333333 | J39: =SUMIF('BdD Imp'!$I$3:$I$1000,CONCATENATE(J$32,$B39),'BdD Imp'!$G$3:$G$1000) -> 0 | K39: =SUMIF('BdD Imp'!$I$3:$I$1000,CONCATENATE(K$32,$B39),'BdD Imp'!$G$3:$G$1000) -> 0 | L39: =SUMIF('BdD Imp'!$I$3:$I$1000,CONCATENATE(L$32,$B39),'BdD Imp'!$G$3:$G$1000) -> 0 | M39: =SUMIF('BdD Imp'!$I$3:$I$1000,CONCATENATE(M$32,$B39),'BdD Imp'!$G$3:$G$1000) -> 0 | N39: =SUMIF('BdD Imp'!$I$3:$I$1000,CONCATENATE(N$32,$B39),'BdD Imp'!$G$3:$G$1000) -> 0 | O39: 6
B40: C17 | C40: =SUMIF('BdD Imp'!$I$3:$I$1000,CONCATENATE(C$32,$B40),'BdD Imp'!$G$3:$G$1000) -> 0 | D40: =SUMIF('BdD Imp'!$I$3:$I$1000,CONCATENATE(D$32,$B40),'BdD Imp'!$G$3:$G$1000) -> 0 | E40: =SUMIF('BdD Imp'!$I$3:$I$1000,CONCATENATE(E$32,$B40),'BdD Imp'!$G$3:$G$1000) -> 0 | F40: =SUMIF('BdD Imp'!$I$3:$I$1000,CONCATENATE(F$32,$B40),'BdD Imp'!$G$3:$G$1000) -> 0 | G40: =SUMIF('BdD Imp'!$I$3:$I$1000,CONCATENATE(G$32,$B40),'BdD Imp'!$G$3:$G$1000) -> 0 | H40: =SUMIF('BdD Imp'!$I$3:$I$1000,CONCATENATE(H$32,$B40),'BdD Imp'!$G$3:$G$1000) -> 0 | I40: =SUMIF('BdD Imp'!$I$3:$I$1000,CONCATENATE(I$32,$B40),'BdD Imp'!$G$3:$G$1000) -> 0 | J40: =SUMIF('BdD Imp'!$I$3:$I$1000,CONCATENATE(J$32,$B40),'BdD Imp'!$G$3:$G$1000) -> 0 | K40: =SUMIF('BdD Imp'!$I$3:$I$1000,CONCATENATE(K$32,$B40),'BdD Imp'!$G$3:$G$1000) -> 0 | L40: =SUMIF('BdD Imp'!$I$3:$I$1000,CONCATENATE(L$32,$B40),'BdD Imp'!$G$3:$G$1000) -> 0 | M40: =SUMIF('BdD Imp'!$I$3:$I$1000,CONCATENATE(M$32,$B40),'BdD Imp'!$G$3:$G$1000) -> 0 | N40: =SUMIF('BdD Imp'!$I$3:$I$1000,CONCATENATE(N$32,$B40),'BdD Imp'!$G$3:$G$1000) -> 0 | O40: 0
B41: C18 | C41: =SUMIF('BdD Imp'!$I$3:$I$1000,CONCATENATE(C$32,$B41),'BdD Imp'!$G$3:$G$1000) -> 0 | D41: =SUMIF('BdD Imp'!$I$3:$I$1000,CONCATENATE(D$32,$B41),'BdD Imp'!$G$3:$G$1000) -> 0 | E41: =SUMIF('BdD Imp'!$I$3:$I$1000,CONCATENATE(E$32,$B41),'BdD Imp'!$G$3:$G$1000) -> 0 | F41: =SUMIF('BdD Imp'!$I$3:$I$1000,CONCATENATE(F$32,$B41),'BdD Imp'!$G$3:$G$1000) -> 0 | G41: =SUMIF('BdD Imp'!$I$3:$I$1000,CONCATENATE(G$32,$B41),'BdD Imp'!$G$3:$G$1000) -> 0 | H41: =SUMIF('BdD Imp'!$I$3:$I$1000,CONCATENATE(H$32,$B41),'BdD Imp'!$G$3:$G$1000) -> 0 | I41: =SUMIF('BdD Imp'!$I$3:$I$1000,CONCATENATE(I$32,$B41),'BdD Imp'!$G$3:$G$1000) -> 0 | J41: =SUMIF('BdD Imp'!$I$3:$I$1000,CONCATENATE(J$32,$B41),'BdD Imp'!$G$3:$G$1000) -> 0 | K41: =SUMIF('BdD Imp'!$I$3:$I$1000,CONCATENATE(K$32,$B41),'BdD Imp'!$G$3:$G$1000) -> 0 | L41: =SUMIF('BdD Imp'!$I$3:$I$1000,CONCATENATE(L$32,$B41),'BdD Imp'!$G$3:$G$1000) -> 0 | M41: =SUMIF('BdD Imp'!$I$3:$I$1000,CONCATENATE(M$32,$B41),'BdD Imp'!$G$3:$G$1000) -> 0 | N41: =SUMIF('BdD Imp'!$I$3:$I$1000,CONCATENATE(N$32,$B41),'BdD Imp'!$G$3:$G$1000) -> 0 | O41: 0
B42: C19 | C42: =SUMIF('BdD Imp'!$I$3:$I$1000,CONCATENATE(C$32,$B42),'BdD Imp'!$G$3:$G$1000) -> 0 | D42: =SUMIF('BdD Imp'!$I$3:$I$1000,CONCATENATE(D$32,$B42),'BdD Imp'!$G$3:$G$1000) -> 0 | E42: =SUMIF('BdD Imp'!$I$3:$I$1000,CONCATENATE(E$32,$B42),'BdD Imp'!$G$3:$G$1000) -> 0 | F42: =SUMIF('BdD Imp'!$I$3:$I$1000,CONCATENATE(F$32,$B42),'BdD Imp'!$G$3:$G$1000) -> 0 | G42: =SUMIF('BdD Imp'!$I$3:$I$1000,CONCATENATE(G$32,$B42),'BdD Imp'!$G$3:$G$1000) -> 0 | H42: =SUMIF('BdD Imp'!$I$3:$I$1000,CONCATENATE(H$32,$B42),'BdD Imp'!$G$3:$G$1000) -> 0 | I42: =SUMIF('BdD Imp'!$I$3:$I$1000,CONCATENATE(I$32,$B42),'BdD Imp'!$G$3:$G$1000) -> 0 | J42: =SUMIF('BdD Imp'!$I$3:$I$1000,CONCATENATE(J$32,$B42),'BdD Imp'!$G$3:$G$1000) -> 0 | K42: =SUMIF('BdD Imp'!$I$3:$I$1000,CONCATENATE(K$32,$B42),'BdD Imp'!$G$3:$G$1000) -> 0 | L42: =SUMIF('BdD Imp'!$I$3:$I$1000,CONCATENATE(L$32,$B42),'BdD Imp'!$G$3:$G$1000) -> 0 | M42: =SUMIF('BdD Imp'!$I$3:$I$1000,CONCATENATE(M$32,$B42),'BdD Imp'!$G$3:$G$1000) -> 0 | N42: =SUMIF('BdD Imp'!$I$3:$I$1000,CONCATENATE(N$32,$B42),'BdD Imp'!$G$3:$G$1000) -> 0 | O42: 0
B43: C20 | C43: =SUMIF('BdD Imp'!$I$3:$I$1000,CONCATENATE(C$32,$B43),'BdD Imp'!$G$3:$G$1000) -> 0 | D43: =SUMIF('BdD Imp'!$I$3:$I$1000,CONCATENATE(D$32,$B43),'BdD Imp'!$G$3:$G$1000) -> 0 | E43: =SUMIF('BdD Imp'!$I$3:$I$1000,CONCATENATE(E$32,$B43),'BdD Imp'!$G$3:$G$1000) -> 0 | F43: =SUMIF('BdD Imp'!$I$3:$I$1000,CONCATENATE(F$32,$B43),'BdD Imp'!$G$3:$G$1000) -> 0 | G43: =SUMIF('BdD Imp'!$I$3:$I$1000,CONCATENATE(G$32,$B43),'BdD Imp'!$G$3:$G$1000) -> 0 | H43: =SUMIF('BdD Imp'!$I$3:$I$1000,CONCATENATE(H$32,$B43),'BdD Imp'!$G$3:$G$1000) -> 0 | I43: =SUMIF('BdD Imp'!$I$3:$I$1000,CONCATENATE(I$32,$B43),'BdD Imp'!$G$3:$G$1000) -> 0 | J43: =SUMIF('BdD Imp'!$I$3:$I$1000,CONCATENATE(J$32,$B43),'BdD Imp'!$G$3:$G$1000) -> 0 | K43: =SUMIF('BdD Imp'!$I$3:$I$1000,CONCATENATE(K$32,$B43),'BdD Imp'!$G$3:$G$1000) -> 0 | L43: =SUMIF('BdD Imp'!$I$3:$I$1000,CONCATENATE(L$32,$B43),'BdD Imp'!$G$3:$G$1000) -> 0 | M43: =SUMIF('BdD Imp'!$I$3:$I$1000,CONCATENATE(M$32,$B43),'BdD Imp'!$G$3:$G$1000) -> 0 | N43: =SUMIF('BdD Imp'!$I$3:$I$1000,CONCATENATE(N$32,$B43),'BdD Imp'!$G$3:$G$1000) -> 0 | O43: 0
B44: C21 | C44: =SUMIF('BdD Imp'!$I$3:$I$1000,CONCATENATE(C$32,$B44),'BdD Imp'!$G$3:$G$1000) -> 0 | D44: =SUMIF('BdD Imp'!$I$3:$I$1000,CONCATENATE(D$32,$B44),'BdD Imp'!$G$3:$G$1000) -> 0 | E44: =SUMIF('BdD Imp'!$I$3:$I$1000,CONCATENATE(E$32,$B44),'BdD Imp'!$G$3:$G$1000) -> 0 | F44: =SUMIF('BdD Imp'!$I$3:$I$1000,CONCATENATE(F$32,$B44),'BdD Imp'!$G$3:$G$1000) -> 1.25 | G44: =SUMIF('BdD Imp'!$I$3:$I$1000,CONCATENATE(G$32,$B44),'BdD Imp'!$G$3:$G$1000) -> 0 | H44: =SUMIF('BdD Imp'!$I$3:$I$1000,CONCATENATE(H$32,$B44),'BdD Imp'!$G$3:$G$1000) -> 0 | I44: =SUMIF('BdD Imp'!$I$3:$I$1000,CONCATENATE(I$32,$B44),'BdD Imp'!$G$3:$G$1000) -> 1.25 | J44: =SUMIF('BdD Imp'!$I$3:$I$1000,CONCATENATE(J$32,$B44),'BdD Imp'!$G$3:$G$1000) -> 0 | K44: =SUMIF('BdD Imp'!$I$3:$I$1000,CONCATENATE(K$32,$B44),'BdD Imp'!$G$3:$G$1000) -> 0 | L44: =SUMIF('BdD Imp'!$I$3:$I$1000,CONCATENATE(L$32,$B44),'BdD Imp'!$G$3:$G$1000) -> 0 | M44: =SUMIF('BdD Imp'!$I$3:$I$1000,CONCATENATE(M$32,$B44),'BdD Imp'!$G$3:$G$1000) -> 0 | N44: =SUMIF('BdD Imp'!$I$3:$I$1000,CONCATENATE(N$32,$B44),'BdD Imp'!$G$3:$G$1000) -> 0 | O44: 2.5
B45: C22 | C45: =SUMIF('BdD Imp'!$I$3:$I$1000,CONCATENATE(C$32,$B45),'BdD Imp'!$G$3:$G$1000) -> 0 | D45: =SUMIF('BdD Imp'!$I$3:$I$1000,CONCATENATE(D$32,$B45),'BdD Imp'!$G$3:$G$1000) -> 0 | E45: =SUMIF('BdD Imp'!$I$3:$I$1000,CONCATENATE(E$32,$B45),'BdD Imp'!$G$3:$G$1000) -> 0 | F45: =SUMIF('BdD Imp'!$I$3:$I$1000,CONCATENATE(F$32,$B45),'BdD Imp'!$G$3:$G$1000) -> 0 | G45: =SUMIF('BdD Imp'!$I$3:$I$1000,CONCATENATE(G$32,$B45),'BdD Imp'!$G$3:$G$1000) -> 0 | H45: =SUMIF('BdD Imp'!$I$3:$I$1000,CONCATENATE(H$32,$B45),'BdD Imp'!$G$3:$G$1000) -> 0 | I45: =SUMIF('BdD Imp'!$I$3:$I$1000,CONCATENATE(I$32,$B45),'BdD Imp'!$G$3:$G$1000) -> 0 | J45: =SUMIF('BdD Imp'!$I$3:$I$1000,CONCATENATE(J$32,$B45),'BdD Imp'!$G$3:$G$1000) -> 0 | K45: =SUMIF('BdD Imp'!$I$3:$I$1000,CONCATENATE(K$32,$B45),'BdD Imp'!$G$3:$G$1000) -> 0 | L45: =SUMIF('BdD Imp'!$I$3:$I$1000,CONCATENATE(L$32,$B45),'BdD Imp'!$G$3:$G$1000) -> 0 | M45: =SUMIF('BdD Imp'!$I$3:$I$1000,CONCATENATE(M$32,$B45),'BdD Imp'!$G$3:$G$1000) -> 0 | N45: =SUMIF('BdD Imp'!$I$3:$I$1000,CONCATENATE(N$32,$B45),'BdD Imp'!$G$3:$G$1000) -> 0 | O45: 0
B46: C23 | C46: =SUMIF('BdD Imp'!$I$3:$I$1000,CONCATENATE(C$32,$B46),'BdD Imp'!$G$3:$G$1000) -> 0 | D46: =SUMIF('BdD Imp'!$I$3:$I$1000,CONCATENATE(D$32,$B46),'BdD Imp'!$G$3:$G$1000) -> 0 | E46: =SUMIF('BdD Imp'!$I$3:$I$1000,CONCATENATE(E$32,$B46),'BdD Imp'!$G$3:$G$1000) -> 0 | F46: =SUMIF('BdD Imp'!$I$3:$I$1000,CONCATENATE(F$32,$B46),'BdD Imp'!$G$3:$G$1000) -> 0 | G46: =SUMIF('BdD Imp'!$I$3:$I$1000,CONCATENATE(G$32,$B46),'BdD Imp'!$G$3:$G$1000) -> 0 | H46: =SUMIF('BdD Imp'!$I$3:$I$1000,CONCATENATE(H$32,$B46),'BdD Imp'!$G$3:$G$1000) -> 0 | I46: =SUMIF('BdD Imp'!$I$3:$I$1000,CONCATENATE(I$32,$B46),'BdD Imp'!$G$3:$G$1000) -> 0 | J46: =SUMIF('BdD Imp'!$I$3:$I$1000,CONCATENATE(J$32,$B46),'BdD Imp'!$G$3:$G$1000) -> 0 | K46: =SUMIF('BdD Imp'!$I$3:$I$1000,CONCATENATE(K$32,$B46),'BdD Imp'!$G$3:$G$1000) -> 0 | L46: =SUMIF('BdD Imp'!$I$3:$I$1000,CONCATENATE(L$32,$B46),'BdD Imp'!$G$3:$G$1000) -> 0 | M46: =SUMIF('BdD Imp'!$I$3:$I$1000,CONCATENATE(M$32,$B46),'BdD Imp'!$G$3:$G$1000) -> 0 | N46: =SUMIF('BdD Imp'!$I$3:$I$1000,CONCATENATE(N$32,$B46),'BdD Imp'!$G$3:$G$1000) -> 0 | O46: 0
B47: C24 | C47: =SUMIF('BdD Imp'!$I$3:$I$1000,CONCATENATE(C$32,$B47),'BdD Imp'!$G$3:$G$1000) -> 0 | D47: =SUMIF('BdD Imp'!$I$3:$I$1000,CONCATENATE(D$32,$B47),'BdD Imp'!$G$3:$G$1000) -> 0 | E47: =SUMIF('BdD Imp'!$I$3:$I$1000,CONCATENATE(E$32,$B47),'BdD Imp'!$G$3:$G$1000) -> 0 | F47: =SUMIF('BdD Imp'!$I$3:$I$1000,CONCATENATE(F$32,$B47),'BdD Imp'!$G$3:$G$1000) -> 0 | G47: =SUMIF('BdD Imp'!$I$3:$I$1000,CONCATENATE(G$32,$B47),'BdD Imp'!$G$3:$G$1000) -> 0 | H47: =SUMIF('BdD Imp'!$I$3:$I$1000,CONCATENATE(H$32,$B47),'BdD Imp'!$G$3:$G$1000) -> 0 | I47: =SUMIF('BdD Imp'!$I$3:$I$1000,CONCATENATE(I$32,$B47),'BdD Imp'!$G$3:$G$1000) -> 0 | J47: =SUMIF('BdD Imp'!$I$3:$I$1000,CONCATENATE(J$32,$B47),'BdD Imp'!$G$3:$G$1000) -> 0 | K47: =SUMIF('BdD Imp'!$I$3:$I$1000,CONCATENATE(K$32,$B47),'BdD Imp'!$G$3:$G$1000) -> 0 | L47: =SUMIF('BdD Imp'!$I$3:$I$1000,CONCATENATE(L$32,$B47),'BdD Imp'!$G$3:$G$1000) -> 0 | M47: =SUMIF('BdD Imp'!$I$3:$I$1000,CONCATENATE(M$32,$B47),'BdD Imp'!$G$3:$G$1000) -> 0 | N47: =SUMIF('BdD Imp'!$I$3:$I$1000,CONCATENATE(N$32,$B47),'BdD Imp'!$G$3:$G$1000) -> 0 | O47: 0
B48: C25 | C48: =SUMIF('BdD Imp'!$I$3:$I$1000,CONCATENATE(C$32,$B48),'BdD Imp'!$G$3:$G$1000) -> 0 | D48: =SUMIF('BdD Imp'!$I$3:$I$1000,CONCATENATE(D$32,$B48),'BdD Imp'!$G$3:$G$1000) -> 0 | E48: =SUMIF('BdD Imp'!$I$3:$I$1000,CONCATENATE(E$32,$B48),'BdD Imp'!$G$3:$G$1000) -> 0 | F48: =SUMIF('BdD Imp'!$I$3:$I$1000,CONCATENATE(F$32,$B48),'BdD Imp'!$G$3:$G$1000) -> 0 | G48: =SUMIF('BdD Imp'!$I$3:$I$1000,CONCATENATE(G$32,$B48),'BdD Imp'!$G$3:$G$1000) -> 0 | H48: =SUMIF('BdD Imp'!$I$3:$I$1000,CONCATENATE(H$32,$B48),'BdD Imp'!$G$3:$G$1000) -> 0 | I48: =SUMIF('BdD Imp'!$I$3:$I$1000,CONCATENATE(I$32,$B48),'BdD Imp'!$G$3:$G$1000) -> 0 | J48: =SUMIF('BdD Imp'!$I$3:$I$1000,CONCATENATE(J$32,$B48),'BdD Imp'!$G$3:$G$1000) -> 0 | K48: =SUMIF('BdD Imp'!$I$3:$I$1000,CONCATENATE(K$32,$B48),'BdD Imp'!$G$3:$G$1000) -> 0 | L48: =SUMIF('BdD Imp'!$I$3:$I$1000,CONCATENATE(L$32,$B48),'BdD Imp'!$G$3:$G$1000) -> 0 | M48: =SUMIF('BdD Imp'!$I$3:$I$1000,CONCATENATE(M$32,$B48),'BdD Imp'!$G$3:$G$1000) -> 0 | N48: =SUMIF('BdD Imp'!$I$3:$I$1000,CONCATENATE(N$32,$B48),'BdD Imp'!$G$3:$G$1000) -> 0 | O48: 0
B49: C26 | C49: =SUMIF('BdD Imp'!$I$3:$I$1000,CONCATENATE(C$32,$B49),'BdD Imp'!$G$3:$G$1000) -> 0 | D49: =SUMIF('BdD Imp'!$I$3:$I$1000,CONCATENATE(D$32,$B49),'BdD Imp'!$G$3:$G$1000) -> 0 | E49: =SUMIF('BdD Imp'!$I$3:$I$1000,CONCATENATE(E$32,$B49),'BdD Imp'!$G$3:$G$1000) -> 0 | F49: =SUMIF('BdD Imp'!$I$3:$I$1000,CONCATENATE(F$32,$B49),'BdD Imp'!$G$3:$G$1000) -> 0.75 | G49: =SUMIF('BdD Imp'!$I$3:$I$1000,CONCATENATE(G$32,$B49),'BdD Imp'!$G$3:$G$1000) -> 0 | H49: =SUMIF('BdD Imp'!$I$3:$I$1000,CONCATENATE(H$32,$B49),'BdD Imp'!$G$3:$G$1000) -> 0 | I49: =SUMIF('BdD Imp'!$I$3:$I$1000,CONCATENATE(I$32,$B49),'BdD Imp'!$G$3:$G$1000) -> 0.75 | J49: =SUMIF('BdD Imp'!$I$3:$I$1000,CONCATENATE(J$32,$B49),'BdD Imp'!$G$3:$G$1000) -> 0 | K49: =SUMIF('BdD Imp'!$I$3:$I$1000,CONCATENATE(K$32,$B49),'BdD Imp'!$G$3:$G$1000) -> 0 | L49: =SUMIF('BdD Imp'!$I$3:$I$1000,CONCATENATE(L$32,$B49),'BdD Imp'!$G$3:$G$1000) -> 0 | M49: =SUMIF('BdD Imp'!$I$3:$I$1000,CONCATENATE(M$32,$B49),'BdD Imp'!$G$3:$G$1000) -> 0 | N49: =SUMIF('BdD Imp'!$I$3:$I$1000,CONCATENATE(N$32,$B49),'BdD Imp'!$G$3:$G$1000) -> 0 | O49: 1.5
B50: C27 | C50: =SUMIF('BdD Imp'!$I$3:$I$1000,CONCATENATE(C$32,$B50),'BdD Imp'!$G$3:$G$1000) -> 0 | D50: =SUMIF('BdD Imp'!$I$3:$I$1000,CONCATENATE(D$32,$B50),'BdD Imp'!$G$3:$G$1000) -> 0 | E50: =SUMIF('BdD Imp'!$I$3:$I$1000,CONCATENATE(E$32,$B50),'BdD Imp'!$G$3:$G$1000) -> 0 | F50: =SUMIF('BdD Imp'!$I$3:$I$1000,CONCATENATE(F$32,$B50),'BdD Imp'!$G$3:$G$1000) -> 0 | G50: =SUMIF('BdD Imp'!$I$3:$I$1000,CONCATENATE(G$32,$B50),'BdD Imp'!$G$3:$G$1000) -> 0 | H50: =SUMIF('BdD Imp'!$I$3:$I$1000,CONCATENATE(H$32,$B50),'BdD Imp'!$G$3:$G$1000) -> 0 | I50: =SUMIF('BdD Imp'!$I$3:$I$1000,CONCATENATE(I$32,$B50),'BdD Imp'!$G$3:$G$1000) -> 0 | J50: =SUMIF('BdD Imp'!$I$3:$I$1000,CONCATENATE(J$32,$B50),'BdD Imp'!$G$3:$G$1000) -> 0 | K50: =SUMIF('BdD Imp'!$I$3:$I$1000,CONCATENATE(K$32,$B50),'BdD Imp'!$G$3:$G$1000) -> 0 | L50: =SUMIF('BdD Imp'!$I$3:$I$1000,CONCATENATE(L$32,$B50),'BdD Imp'!$G$3:$G$1000) -> 0 | M50: =SUMIF('BdD Imp'!$I$3:$I$1000,CONCATENATE(M$32,$B50),'BdD Imp'!$G$3:$G$1000) -> 0 | N50: =SUMIF('BdD Imp'!$I$3:$I$1000,CONCATENATE(N$32,$B50),'BdD Imp'!$G$3:$G$1000) -> 0 | O50: 0
B51: C28 | C51: =SUMIF('BdD Imp'!$I$3:$I$1000,CONCATENATE(C$32,$B51),'BdD Imp'!$G$3:$G$1000) -> 0 | D51: =SUMIF('BdD Imp'!$I$3:$I$1000,CONCATENATE(D$32,$B51),'BdD Imp'!$G$3:$G$1000) -> 2 | E51: =SUMIF('BdD Imp'!$I$3:$I$1000,CONCATENATE(E$32,$B51),'BdD Imp'!$G$3:$G$1000) -> 2 | F51: =SUMIF('BdD Imp'!$I$3:$I$1000,CONCATENATE(F$32,$B51),'BdD Imp'!$G$3:$G$1000) -> 2.2 | G51: =SUMIF('BdD Imp'!$I$3:$I$1000,CONCATENATE(G$32,$B51),'BdD Imp'!$G$3:$G$1000) -> 2 | H51: =SUMIF('BdD Imp'!$I$3:$I$1000,CONCATENATE(H$32,$B51),'BdD Imp'!$G$3:$G$1000) -> 0 | I51: =SUMIF('BdD Imp'!$I$3:$I$1000,CONCATENATE(I$32,$B51),'BdD Imp'!$G$3:$G$1000) -> 0.2 | J51: =SUMIF('BdD Imp'!$I$3:$I$1000,CONCATENATE(J$32,$B51),'BdD Imp'!$G$3:$G$1000) -> 0 | K51: =SUMIF('BdD Imp'!$I$3:$I$1000,CONCATENATE(K$32,$B51),'BdD Imp'!$G$3:$G$1000) -> 0 | L51: =SUMIF('BdD Imp'!$I$3:$I$1000,CONCATENATE(L$32,$B51),'BdD Imp'!$G$3:$G$1000) -> 0 | M51: =SUMIF('BdD Imp'!$I$3:$I$1000,CONCATENATE(M$32,$B51),'BdD Imp'!$G$3:$G$1000) -> 0 | N51: =SUMIF('BdD Imp'!$I$3:$I$1000,CONCATENATE(N$32,$B51),'BdD Imp'!$G$3:$G$1000) -> 0 | O51: 8.4
B52: C29 | C52: =SUMIF('BdD Imp'!$I$3:$I$1000,CONCATENATE(C$32,$B52),'BdD Imp'!$G$3:$G$1000) -> 1 | D52: =SUMIF('BdD Imp'!$I$3:$I$1000,CONCATENATE(D$32,$B52),'BdD Imp'!$G$3:$G$1000) -> 10 | E52: =SUMIF('BdD Imp'!$I$3:$I$1000,CONCATENATE(E$32,$B52),'BdD Imp'!$G$3:$G$1000) -> 0 | F52: =SUMIF('BdD Imp'!$I$3:$I$1000,CONCATENATE(F$32,$B52),'BdD Imp'!$G$3:$G$1000) -> 1.25 | G52: =SUMIF('BdD Imp'!$I$3:$I$1000,CONCATENATE(G$32,$B52),'BdD Imp'!$G$3:$G$1000) -> 0 | H52: =SUMIF('BdD Imp'!$I$3:$I$1000,CONCATENATE(H$32,$B52),'BdD Imp'!$G$3:$G$1000) -> 10 | I52: =SUMIF('BdD Imp'!$I$3:$I$1000,CONCATENATE(I$32,$B52),'BdD Imp'!$G$3:$G$1000) -> 1.25 | J52: =SUMIF('BdD Imp'!$I$3:$I$1000,CONCATENATE(J$32,$B52),'BdD Imp'!$G$3:$G$1000) -> 0 | K52: =SUMIF('BdD Imp'!$I$3:$I$1000,CONCATENATE(K$32,$B52),'BdD Imp'!$G$3:$G$1000) -> 0 | L52: =SUMIF('BdD Imp'!$I$3:$I$1000,CONCATENATE(L$32,$B52),'BdD Imp'!$G$3:$G$1000) -> 0 | M52: =SUMIF('BdD Imp'!$I$3:$I$1000,CONCATENATE(M$32,$B52),'BdD Imp'!$G$3:$G$1000) -> 0 | N52: =SUMIF('BdD Imp'!$I$3:$I$1000,CONCATENATE(N$32,$B52),'BdD Imp'!$G$3:$G$1000) -> 0 | O52: 23.5
B53: C30 | C53: =SUMIF('BdD Imp'!$I$3:$I$1000,CONCATENATE(C$32,$B53),'BdD Imp'!$G$3:$G$1000) -> 0 | D53: =SUMIF('BdD Imp'!$I$3:$I$1000,CONCATENATE(D$32,$B53),'BdD Imp'!$G$3:$G$1000) -> 0 | E53: =SUMIF('BdD Imp'!$I$3:$I$1000,CONCATENATE(E$32,$B53),'BdD Imp'!$G$3:$G$1000) -> 6 | F53: =SUMIF('BdD Imp'!$I$3:$I$1000,CONCATENATE(F$32,$B53),'BdD Imp'!$G$3:$G$1000) -> 6 | G53: =SUMIF('BdD Imp'!$I$3:$I$1000,CONCATENATE(G$32,$B53),'BdD Imp'!$G$3:$G$1000) -> 0 | H53: =SUMIF('BdD Imp'!$I$3:$I$1000,CONCATENATE(H$32,$B53),'BdD Imp'!$G$3:$G$1000) -> 0 | I53: =SUMIF('BdD Imp'!$I$3:$I$1000,CONCATENATE(I$32,$B53),'BdD Imp'!$G$3:$G$1000) -> 6 | J53: =SUMIF('BdD Imp'!$I$3:$I$1000,CONCATENATE(J$32,$B53),'BdD Imp'!$G$3:$G$1000) -> 0 | K53: =SUMIF('BdD Imp'!$I$3:$I$1000,CONCATENATE(K$32,$B53),'BdD Imp'!$G$3:$G$1000) -> 0 | L53: =SUMIF('BdD Imp'!$I$3:$I$1000,CONCATENATE(L$32,$B53),'BdD Imp'!$G$3:$G$1000) -> 0 | M53: =SUMIF('BdD Imp'!$I$3:$I$1000,CONCATENATE(M$32,$B53),'BdD Imp'!$G$3:$G$1000) -> 0 | N53: =SUMIF('BdD Imp'!$I$3:$I$1000,CONCATENATE(N$32,$B53),'BdD Imp'!$G$3:$G$1000) -> 0 | O53: 18
B54: C31 | C54: =SUMIF('BdD Imp'!$I$3:$I$1000,CONCATENATE(C$32,$B54),'BdD Imp'!$G$3:$G$1000) -> 0 | D54: =SUMIF('BdD Imp'!$I$3:$I$1000,CONCATENATE(D$32,$B54),'BdD Imp'!$G$3:$G$1000) -> 0 | E54: =SUMIF('BdD Imp'!$I$3:$I$1000,CONCATENATE(E$32,$B54),'BdD Imp'!$G$3:$G$1000) -> 0 | F54: =SUMIF('BdD Imp'!$I$3:$I$1000,CONCATENATE(F$32,$B54),'BdD Imp'!$G$3:$G$1000) -> 0 | G54: =SUMIF('BdD Imp'!$I$3:$I$1000,CONCATENATE(G$32,$B54),'BdD Imp'!$G$3:$G$1000) -> 0 | H54: =SUMIF('BdD Imp'!$I$3:$I$1000,CONCATENATE(H$32,$B54),'BdD Imp'!$G$3:$G$1000) -> 0 | I54: =SUMIF('BdD Imp'!$I$3:$I$1000,CONCATENATE(I$32,$B54),'BdD Imp'!$G$3:$G$1000) -> 0 | J54: =SUMIF('BdD Imp'!$I$3:$I$1000,CONCATENATE(J$32,$B54),'BdD Imp'!$G$3:$G$1000) -> 0 | K54: =SUMIF('BdD Imp'!$I$3:$I$1000,CONCATENATE(K$32,$B54),'BdD Imp'!$G$3:$G$1000) -> 0 | L54: =SUMIF('BdD Imp'!$I$3:$I$1000,CONCATENATE(L$32,$B54),'BdD Imp'!$G$3:$G$1000) -> 0 | M54: =SUMIF('BdD Imp'!$I$3:$I$1000,CONCATENATE(M$32,$B54),'BdD Imp'!$G$3:$G$1000) -> 0 | N54: =SUMIF('BdD Imp'!$I$3:$I$1000,CONCATENATE(N$32,$B54),'BdD Imp'!$G$3:$G$1000) -> 0 | O54: 0
B55: C32 | C55: =SUMIF('BdD Imp'!$I$3:$I$1000,CONCATENATE(C$32,$B55),'BdD Imp'!$G$3:$G$1000) -> 0 | D55: =SUMIF('BdD Imp'!$I$3:$I$1000,CONCATENATE(D$32,$B55),'BdD Imp'!$G$3:$G$1000) -> 2 | E55: =SUMIF('BdD Imp'!$I$3:$I$1000,CONCATENATE(E$32,$B55),'BdD Imp'!$G$3:$G$1000) -> 0 | F55: =SUMIF('BdD Imp'!$I$3:$I$1000,CONCATENATE(F$32,$B55),'BdD Imp'!$G$3:$G$1000) -> 0 | G55: =SUMIF('BdD Imp'!$I$3:$I$1000,CONCATENATE(G$32,$B55),'BdD Imp'!$G$3:$G$1000) -> 2 | H55: =SUMIF('BdD Imp'!$I$3:$I$1000,CONCATENATE(H$32,$B55),'BdD Imp'!$G$3:$G$1000) -> 7.75 | I55: =SUMIF('BdD Imp'!$I$3:$I$1000,CONCATENATE(I$32,$B55),'BdD Imp'!$G$3:$G$1000) -> 0 | J55: =SUMIF('BdD Imp'!$I$3:$I$1000,CONCATENATE(J$32,$B55),'BdD Imp'!$G$3:$G$1000) -> 0 | K55: =SUMIF('BdD Imp'!$I$3:$I$1000,CONCATENATE(K$32,$B55),'BdD Imp'!$G$3:$G$1000) -> 0 | L55: =SUMIF('BdD Imp'!$I$3:$I$1000,CONCATENATE(L$32,$B55),'BdD Imp'!$G$3:$G$1000) -> 0 | M55: =SUMIF('BdD Imp'!$I$3:$I$1000,CONCATENATE(M$32,$B55),'BdD Imp'!$G$3:$G$1000) -> 0 | N55: =SUMIF('BdD Imp'!$I$3:$I$1000,CONCATENATE(N$32,$B55),'BdD Imp'!$G$3:$G$1000) -> 0 | O55: 11.75
B56: C33 | C56: =SUMIF('BdD Imp'!$I$3:$I$1000,CONCATENATE(C$32,$B56),'BdD Imp'!$G$3:$G$1000) -> 0 | D56: =SUMIF('BdD Imp'!$I$3:$I$1000,CONCATENATE(D$32,$B56),'BdD Imp'!$G$3:$G$1000) -> 0 | E56: =SUMIF('BdD Imp'!$I$3:$I$1000,CONCATENATE(E$32,$B56),'BdD Imp'!$G$3:$G$1000) -> 0 | F56: =SUMIF('BdD Imp'!$I$3:$I$1000,CONCATENATE(F$32,$B56),'BdD Imp'!$G$3:$G$1000) -> 0 | G56: =SUMIF('BdD Imp'!$I$3:$I$1000,CONCATENATE(G$32,$B56),'BdD Imp'!$G$3:$G$1000) -> 0 | H56: =SUMIF('BdD Imp'!$I$3:$I$1000,CONCATENATE(H$32,$B56),'BdD Imp'!$G$3:$G$1000) -> 0 | I56: =SUMIF('BdD Imp'!$I$3:$I$1000,CONCATENATE(I$32,$B56),'BdD Imp'!$G$3:$G$1000) -> 0 | J56: =SUMIF('BdD Imp'!$I$3:$I$1000,CONCATENATE(J$32,$B56),'BdD Imp'!$G$3:$G$1000) -> 0 | K56: =SUMIF('BdD Imp'!$I$3:$I$1000,CONCATENATE(K$32,$B56),'BdD Imp'!$G$3:$G$1000) -> 0 | L56: =SUMIF('BdD Imp'!$I$3:$I$1000,CONCATENATE(L$32,$B56),'BdD Imp'!$G$3:$G$1000) -> 0 | M56: =SUMIF('BdD Imp'!$I$3:$I$1000,CONCATENATE(M$32,$B56),'BdD Imp'!$G$3:$G$1000) -> 0 | N56: =SUMIF('BdD Imp'!$I$3:$I$1000,CONCATENATE(N$32,$B56),'BdD Imp'!$G$3:$G$1000) -> 0 | O56: 0
B57: EFI-MES | C57: =SUM(C33:C56) -> 6.666666667 | D57: =SUM(D33:D56) -> 14.83333333 | E57: 8 | F57: 11.45 | G57: 4.833333333 | H57: 17.75 | I57: 15.28333333 | J57: 0 | K57: 0 | L57: 0 | M57: 0 | N57: 0 | O57: =SUM(O33:O56) -> 78.81666667

Sheet Maestro
B3: Código | C3: Causa Improductividad | E3: Líneas Producción | G3: Líder de proceso
B4: C10 | C4: ACCIDENTE DE TRABAJO | E4: MECANIZADO | G4: CARLOS RUIZ
B5: C11 | C5: ASEO | E5: CORTE | G5: SANTIAGO MARIN
B6: C12 | C6: CAMBIO DE HERRAMIENTA | E6: SOLDADURA | G6: KAREN GARCIA
B7: C13 | C7: CAMBIO DE PROGRAMACIÓN | E7: ENSAMBLE | G7: EDISON CANO
B8: C14 | C8: CLASIFICACIÓN DE MATERIAL | E8: PINTURA | G8: ANDREA MONTOYA
B9: C15 | C9: DAÑO DE HERRAMIENTA | E9: EMPAQUE
B10: C16 | C10: DAÑO DE MÁQUINA
B11: C17 | C11: DAR O RECIBIR INDUCCIÓN
B12: C18 | C12: DEFECTOS EN LOS MATERIALES
B13: C19 | C13: DIFERENCIAS EN LAS CANTIDAD DE LOS MATERIALES
B14: C20 | C14: FALTA DE CLARIDAD EN INFORMACIÓN Y/O FICHAS TÉCNICAS
B15: C21 | C15: FALTA DE MATERIAL
B16: C22 | C16: FALTA DE PATINADOR
B17: C23 | C17: GESTIÓN DE MANTENIMIENTO
B18: C24 | C18: HACER INVENTARIO DE MATERIAL
B19: C25 | C19: HERRAMIENTA MAL ESTADO
B20: C26 | C20: MONTAJES CON INTERVENCIÓN DE MANTENIMIENTO
B21: C27 | C21: OTROS
B22: C28 | C22: PERMISOS
B23: C29 | C23: PRUEBAS O ENSAYOS
B24: C30 | C24: REPROCESOS
B25: C31 | C25: REUNIÓN O CAPACITACIÓN
B26: C32 | C26: SOLICITUD DE MATERIALES NO PARAMETRIZADOS
